fUST/lending_fUST_20250402
["ID","MTS","AMOUNT","RATE_DAILY","PERIOD"]
[357005479,1743570650447,-500.0,0.00020814,2]
[357005480,1743570650456,-199.51,0.00020814,2]
[357005481,1743570650466,-500.0,0.00020814,2]
[357005482,1743570650476,-500.0,0.00020814,2]
[357005483,1743570650486,-500.0,0.00020814,2]
[357005484,1743570650495,-500.0,0.00020814,2]
[357005485,1743570650505,-500.0,0.00020814,2]
[357005486,1743570650515,-500.0,0.00020814,2]
[357005487,1743570650524,-500.0,0.00020814,2]
[357005488,1743570650533,-229.7313572,0.00020814,2]
[357005489,1743570650543,-500.0,0.00020814,2]
[357005490,1743570650553,-502.01,0.00020814,2]
[357005491,1743570650562,-500.0,0.00020814,2]
[357005492,1743570650572,-500.0,0.00020814,2]
[357005493,1743570650581,-500.0,0.00020814,2]
[357005494,1743570650591,-3334.84,0.00020814,2]
[357005495,1743570650600,-500.0,0.00020814,2]
[357005496,1743570650610,-500.0,0.00020814,2]
[357005497,1743570650620,-500.0,0.00020814,2]
[357005498,1743570650629,-500.0,0.00020814,2]
[357005499,1743570650638,-500.0,0.00020814,2]
[357005500,1743570650648,-500.0,0.00020814,2]
[357005501,1743570650658,-500.0,0.00020814,2]
[357005502,1743570650668,-500.0,0.00020814,2]
[357005503,1743570650678,-563.63,0.00020814,2]
[357005504,1743570650688,-500.0,0.00020814,2]
[357005505,1743570650697,-500.0,0.00020814,2]
[357005506,1743570650707,-500.0,0.00020814,2]
[357005507,1743570650717,-500.0,0.00020814,2]
[357005508,1743570650727,-443.9979206,0.00020814,2]
[357005509,1743570650736,-500.0,0.00020814,2]
[357005510,1743570650746,-500.0,0.00020814,2]
[357005511,1743570650756,-500.0,0.00020814,2]
[357005512,1743570650765,-500.0,0.00020814,2]
[357005513,1743570650776,-500.0,0.00020814,2]
[357005514,1743570650785,-500.0,0.00020814,2]
[357005515,1743570650795,-285.715461,0.00020814,2]
[357005516,1743570650805,-500.0,0.00020814,2]
[357005517,1743570650815,-285.715461,0.00020814,2]
[357005518,1743570650855,-500.0,0.00020814,2]
[357005519,1743570650868,-500.0,0.00020814,2]
[357005520,1743570650879,-285.715461,0.00020814,2]
[357005521,1743570650890,-285.715461,0.00020814,2]
[357005522,1743570650900,-500.0,0.00020814,2]
[357005523,1743570650912,-500.0,0.00020814,2]
[357005524,1743570650922,-500.0,0.00020814,2]
[357005525,1743570650932,-500.0,0.00020814,2]
[357005526,1743570650943,-500.0,0.00020814,2]
[357005527,1743570650952,-555.22,0.00020814,2]
[357005528,1743570650962,-500.0,0.00020814,2]
[357005529,1743570650971,-581.4,0.00020814,2]
[357005530,1743570650981,-500.0,0.00020814,2]
[357005531,1743570650991,-500.0,0.00020814,2]
[357005532,1743570651001,-637.1952373,0.00020814,2]
[357005533,1743570651010,-500.0,0.00020814,2]
[357005534,1743570651020,-500.0,0.00020814,2]
[357005535,1743570651030,-500.0,0.00020814,2]
[357005536,1743570651039,-500.0,0.00020814,2]
[357005537,1743570651050,-500.0,0.00020814,2]
[357005538,1743570651059,-500.0,0.00020814,2]
[357005539,1743570651070,-223.15448017,0.00020814,2]
[357005540,1743570651079,-500.0,0.00020814,2]
[357005541,1743570651089,-526.4818528,0.00020814,2]
[357005542,1743570651100,-460.8797108,0.00020814,2]
[357005543,1743570651109,-504.62119314,0.00020814,2]
[357005544,1743570651119,-500.0,0.00020814,2]
[357005545,1743570651128,-500.0,0.00020814,2]
[357005546,1743570651138,-151.0,0.00020814,2]
[357005547,1743570651148,-151.0,0.00020814,2]
[357005548,1743570651157,-500.0,0.00020814,2]
[357005549,1743570651167,-500.0,0.00020814,2]
[357005550,1743570651177,-156.32735157,0.00020814,2]
[357005551,1743570651187,-507.51704205,0.00020814,2]
[357005552,1743570651197,-500.0,0.00020814,2]
[357005553,1743570651207,-283.11,0.00020814,2]
[357005554,1743570651217,-500.0,0.00020814,2]
[357005555,1743570651226,-624.90220014,0.00020814,2]
[357005556,1743570651235,-500.0,0.00020814,2]
[357005557,1743570651245,-503.1539187,0.00020814,2]
[357005558,1743570651254,-500.0,0.00020814,2]
[357005559,1743570651263,-500.0,0.00020814,2]
[357005560,1743570651273,-509.84010816,0.00020814,2]
[357005561,1743570651282,-500.0,0.00020814,2]
[357005562,1743570651291,-500.0,0.00020814,2]
[357005563,1743570651301,-503.83623776,0.00020814,2]
[357005564,1743570651310,-500.0,0.00020814,2]
[357005565,1743570651320,-1023.79,0.00020814,2]
[357005566,1743570651329,-500.0,0.00020814,2]
[357005567,1743570651339,-500.0,0.00020814,2]
[357005568,1743570651348,-501.58199199,0.00020814,2]
[357005569,1743570651358,-512.1852801,0.00020814,2]
[357005570,1743570651368,-519.86800927,0.00020814,2]
[357005571,1743570651377,-500.0,0.00020814,2]
[357005572,1743570651387,-500.0,0.00020814,2]
[357005573,1743570651396,-543.93014497,0.00020814,2]
[357005574,1743570651405,-500.0,0.00020814,2]
[357005575,1743570651414,-170.046735,0.00020815,2]
[357005576,1743570651424,-170.046735,0.00020815,2]
[357005577,1743570651433,-500.0,0.00020893,2]
[357005578,1743570651442,-513.53538168,0.00020893,2]
[357005579,1743570651451,-640.05482737,0.00020893,2]
[357005580,1743570651461,-500.0,0.00020893,2]
[357005581,1743570651470,-504.66472317,0.00020893,2]
[357005582,1743570651479,-500.0,0.00020893,2]
[357005583,1743570651488,-500.0,0.00020893,2]
[357005584,1743570651498,-500.0,0.00020893,2]
[357005585,1743570651507,-3166.15,0.00020893,2]
[357005586,1743570651516,-500.0,0.00020893,2]
[357005587,1743570651525,-170.046735,0.00020893,2]
[357005588,1743570651534,-170.046735,0.00020893,2]
[357005589,1743570651543,-151.0,0.00020893,2]
[357005590,1743570651552,-1389.52242523,0.00020899,2]
[357005591,1743570651561,-500.0,0.000209,2]
[357005592,1743570651570,-153.0,0.000209,2]
[357005593,1743570651579,-7228.50865246,0.000209,3]
[357005594,1743570651588,-500.0,0.00020905,2]
[357005595,1743570651598,-603.85420577,0.00020905,2]
[357005596,1743570651607,-500.0,0.00020905,2]
[357005597,1743570651616,-500.0,0.00020905,2]
[357005598,1743570651625,-506.4385905,0.00020905,2]
[357005599,1743570651634,-500.0,0.00020905,2]
[357005600,1743570651643,-511.76294803,0.00020905,2]
[357005601,1743570651653,-550.97464896,0.00020905,2]
[357005602,1743570651662,-348.44879353,0.00020905,2]
[357005603,1743570651672,-510.05151646,0.00020905,2]
[357005604,1743570651681,-510.60246501,0.00020905,2]
[357005605,1743570651690,-507.60595668,0.00020905,2]
[357005606,1743570651699,-522.96368968,0.00020905,2]
[357005607,1743570651709,-473.91471722,0.00020905,2]
[357005619,1743571005473,175.332578,0.00013699,2]
[357005629,1743571292484,216.2929936,0.00025,30]
[357005645,1743571700572,3030.22197529,0.000125,2]
[357005709,1743571832538,-151.0,0.00019,2]
[357005710,1743571832547,-178.80498334,0.0002,2]
[357005711,1743571832600,-824.61647078,0.0002,2]
[357005712,1743571832610,-155.730029,0.00020062,2]
[357005713,1743571832620,-500.0,0.0002034,2]
[357005714,1743571832630,-161.1880207,0.0002037,2]
[357005715,1743571832640,-151.0,0.00020427,2]
[357005716,1743571832651,-151.0,0.00020427,2]
[357005717,1743571832661,-151.0,0.00020427,2]
[357005718,1743571832671,-151.0,0.00020427,2]
[357005719,1743571832684,-151.0,0.00020427,2]
[357005720,1743571832694,-151.0,0.00020427,2]
[357005722,1743571832704,-151.0,0.00020427,2]
[357005724,1743571832715,-151.0,0.00020427,2]
[357005725,1743571832725,-890.92,0.00020429,3]
[357005727,1743571832735,-300.0,0.00020435,2]
[357005729,1743571832744,-11272.13,0.00020436,2]
[357005730,1743571832754,-500.0,0.00020436,2]
[357005732,1743571832764,-1222.92,0.00020436,2]
[357005734,1743571832774,-473.45209472,0.00020436,2]
[357005736,1743571832784,-500.0,0.00020436,2]
[357005738,1743571832794,-500.0,0.00020436,2]
[357005739,1743571832803,-517.88,0.00020436,2]
[357005741,1743571832813,-4817.56,0.00020436,2]
[357005743,1743571832822,-500.0,0.00020436,2]
[357005744,1743571832832,-500.0,0.00020436,2]
[357005746,1743571832841,-644.06,0.00020436,2]
[357005748,1743571832850,-500.0,0.00020436,2]
[357005750,1743571832859,-500.0,0.00020437,2]
[357005751,1743571832870,-500.0,0.00020437,2]
[357005753,1743571832881,-500.0,0.00020437,2]
[357005755,1743571832890,-500.0,0.00020437,2]
[357005757,1743571832899,-711.87,0.00020437,2]
[357005758,1743571832908,-460.67574857,0.00020437,2]
[357005788,1743571838492,-500.0,0.00020435,2]
[357005789,1743571838502,-148.26822357,0.00020436,2]
[357005790,1743571838515,-351.73177643,0.00020436,2]
[357005791,1743571838525,-158.26822357,0.00020437,2]
[357005863,1743571843727,-296.9532732,0.00020339,2]
[357005864,1743571843738,-500.0,0.00020435,2]
[357005865,1743571843749,-371.46602786,0.00020437,2]
[357005866,1743571843759,-166.79757365,0.00020437,2]
[357005871,1743571846472,-500.0,0.00020435,2]
[357005873,1743571846482,-343.8,0.00020437,2]
[357005874,1743571846535,-31.06242635,0.00020437,2]
[357005875,1743571846547,-500.0,0.00020437,2]
[357005876,1743571846557,-500.0,0.00020437,2]
[357005877,1743571846567,-500.0,0.00020437,2]
[357005878,1743571846577,-500.0,0.00020437,2]
[357005879,1743571846587,-268.36585705,0.00020437,2]
[357005880,1743571846600,-1396.83414295,0.00020437,2]
[357005881,1743571846610,-500.0,0.00020437,2]
[357005882,1743571846620,-500.0,0.00020437,2]
[357005883,1743571846630,-500.0,0.00020437,2]
[357005884,1743571846640,-500.0,0.00020437,2]
[357005885,1743571846650,-500.0,0.00020437,2]
[357005886,1743571846659,-716.65,0.00020437,2]
[357005887,1743571846670,-859.09957955,0.00020437,2]
[357005888,1743571846682,-2374.31042045,0.00020437,2]
[357005889,1743571846692,-515.7800167,0.00020437,2]
[357005890,1743571846702,-370.39104911,0.00020437,2]
[357005891,1743571846712,-312.76,0.00020437,2]
[357005892,1743571846722,-500.0,0.00020438,2]
[357005893,1743571846731,-500.0,0.00020438,2]
[357005894,1743571846742,-500.0,0.00020438,2]
[357005895,1743571846753,-500.0,0.00020438,2]
[357005896,1743571846763,-500.0,0.00020438,2]
[357005897,1743571846774,-500.0,0.00020438,2]
[357005898,1743571846785,-500.0,0.00020438,2]
[357005899,1743571846796,-500.0,0.00020438,2]
[357005900,1743571846806,-518.57629992,0.00020438,2]
[357005901,1743571846817,-500.0,0.00020438,2]
[357005902,1743571846827,-500.0,0.00020438,2]
[357005903,1743571846839,-500.0,0.00020438,2]
[357005904,1743571846849,-500.0,0.00020438,2]
[357005905,1743571846859,-500.0,0.00020438,2]
[357005906,1743571846869,-500.0,0.00020438,2]
[357005907,1743571846879,-500.0,0.00020438,2]
[357005908,1743571846889,-500.0,0.00020438,2]
[357005909,1743571846899,-500.0,0.00020438,2]
[357005910,1743571846908,-500.0,0.00020438,2]
[357005911,1743571846918,-500.0,0.00020438,2]
[357005912,1743571846928,-500.0,0.00020438,2]
[357005913,1743571846938,-500.0,0.00020438,2]
[357005914,1743571846948,-500.0,0.00020438,2]
[357005915,1743571846959,-500.0,0.00020438,2]
[357005916,1743571846970,-500.0,0.00020438,2]
[357005917,1743571846980,-572.36,0.00020438,2]
[357005918,1743571846989,-500.0,0.00020438,2]
[357005919,1743571847000,-500.0,0.00020438,2]
[357005920,1743571847010,-500.0,0.00020438,2]
[357005921,1743571847019,-500.0,0.00020438,2]
[357005922,1743571847029,-517.66,0.00020438,2]
[357005923,1743571847039,-500.0,0.00020438,2]
[357005924,1743571847048,-590.49584801,0.00020438,2]
[357005925,1743571847058,-500.0,0.00020438,2]
[357005926,1743571847067,-500.0,0.00020438,2]
[357005927,1743571847077,-459.41,0.00020438,2]
[357005928,1743571847087,-500.0,0.00020438,2]
[357005929,1743571847098,-500.0,0.00020438,2]
[357005930,1743571847107,-500.0,0.00020438,2]
[357005931,1743571847119,-3056.94,0.00020438,2]
[357005932,1743571847128,-181.58,0.00020438,2]
[357005933,1743571847138,-500.0,0.00020438,2]
[357005934,1743571847148,-500.0,0.00020438,2]
[357005935,1743571847158,-500.0,0.00020438,2]
[357005936,1743571847167,-500.0,0.00020438,2]
[357005937,1743571847177,-500.0,0.00020438,2]
[357005938,1743571847189,-500.0,0.00020438,2]
[357005939,1743571847199,-500.0,0.00020438,2]
[357005940,1743571847208,-500.0,0.00020438,2]
[357005941,1743571847218,-531.68298005,0.00020438,2]
[357005942,1743571847235,-500.0,0.00020438,2]
[357005943,1743571847253,-500.0,0.00020438,2]
[357005944,1743571847262,-500.0,0.00020438,2]
[357005945,1743571847272,-618.56778805,0.00020438,2]
[357005946,1743571847285,-500.0,0.00020438,2]
[357005947,1743571847295,-500.0,0.00020438,2]
[357005948,1743571847304,-500.0,0.00020438,2]
[357005949,1743571847314,-500.65,0.00020439,2]
[357005950,1743571847328,-515.38,0.00020439,2]
[357005951,1743571847338,-500.0,0.00020439,2]
[357005952,1743571847348,-292.50514723,0.00020439,2]
[357005953,1743571847357,-500.0,0.00020439,2]
[357005954,1743571847367,-500.0,0.00020439,2]
[357005955,1743571847377,-500.0,0.00020439,2]
[357005956,1743571847386,-512.1794104,0.00020439,2]
[357005957,1743571847396,-500.0,0.00020439,2]
[357005958,1743571847406,-504.42151005,0.00020439,2]
[357005959,1743571847418,-500.0,0.00020439,2]
[357005960,1743571847428,-500.0,0.00020439,2]
[357005961,1743571847439,-510.40937497,0.00020439,2]
[357005962,1743571847450,-500.0,0.00020439,2]
[357005963,1743571847459,-557.95995987,0.00020439,2]
[357005964,1743571847469,-500.0,0.00020439,2]
[357005965,1743571847479,-229.08369839,0.00020439,2]
[357005966,1743571847489,-500.0,0.00020439,2]
[357005967,1743571847499,-500.0,0.00020439,2]
[357005968,1743571847509,-500.0,0.00020439,2]
[357005969,1743571847518,-500.0,0.00020439,2]
[357005970,1743571847527,-500.0,0.00020439,2]
[357005971,1743571847537,-500.0,0.00020439,2]
[357005972,1743571847547,-500.0,0.00020439,2]
[357005973,1743571847556,-500.0,0.00020439,2]
[357005974,1743571847566,-500.0,0.00020439,2]
[357005975,1743571847576,-539.58,0.00020439,2]
[357005976,1743571847585,-500.0,0.00020439,2]
[357005977,1743571847595,-500.0,0.00020439,2]
[357005978,1743571847604,-500.0,0.00020439,2]
[357005979,1743571847613,-500.0,0.00020439,2]
[357005980,1743571847622,-500.0,0.00020439,2]
[357005981,1743571847631,-624.1,0.00020439,2]
[357005982,1743571847640,-500.0,0.00020439,2]
[357005983,1743571847650,-500.0,0.00020439,2]
[357005984,1743571847659,-500.0,0.00020439,2]
[357005985,1743571847669,-500.0,0.00020439,2]
[357005986,1743571847679,-500.0,0.00020439,2]
[357005987,1743571847689,-500.0,0.00020439,2]
[357005988,1743571847698,-500.0,0.00020439,2]
[357005989,1743571847707,-514.00012455,0.00020439,2]
[357005990,1743571847717,-500.0,0.00020439,2]
[357005991,1743571847727,-500.0,0.00020439,2]
[357005992,1743571847737,-503.55696888,0.00020439,2]
[357005993,1743571847746,-938.48,0.00020439,2]
[357005994,1743571847756,-508.72691857,0.00020439,2]
[357005995,1743571847765,-609.30914773,0.00020439,2]
[357005996,1743571847775,-500.0,0.00020439,2]
[357005997,1743571847784,-615.05,0.00020439,2]
[357005998,1743571847793,-500.0,0.00020439,2]
[357005999,1743571847803,-500.0,0.00020439,2]
[357006000,1743571847812,-500.0,0.00020439,2]
[357006001,1743571847822,-500.0,0.00020439,2]
[357006002,1743571847831,-500.0,0.00020439,2]
[357006003,1743571847841,-500.0,0.00020439,2]
[357006004,1743571847850,-502.52608993,0.00020439,2]
[357006005,1743571847860,-500.0,0.00020439,2]
[357006006,1743571847869,-506.054424,0.00020439,2]
[357006007,1743571847879,-155.002937,0.00020439,2]
[357006008,1743571847888,-507.01493951,0.00020439,2]
[357006009,1743571847898,-500.0,0.00020439,2]
[357006010,1743571847907,-500.0,0.00020439,2]
[357006011,1743571847916,-510.63393009,0.00020439,2]
[357006012,1743571847926,-500.0,0.00020439,2]
[357006013,1743571847935,-500.0,0.00020439,2]
[357006014,1743571847946,-500.0,0.00020439,2]
[357006015,1743571847955,-500.0,0.00020439,2]
[357006016,1743571847964,-500.0,0.00020439,2]
[357006017,1743571847973,-500.0,0.00020439,2]
[357006018,1743571847983,-504.12619332,0.00020439,2]
[357006019,1743571847994,-504.13652849,0.00020439,2]
[357006020,1743571848003,-500.0,0.00020439,2]
[357006021,1743571848013,-509.78814578,0.00020439,2]
[357006022,1743571848022,-509.8440984,0.00020439,2]
[357006023,1743571848032,-500.0,0.00020439,2]
[357006024,1743571848041,-500.0,0.00020439,2]
[357006025,1743571848050,-500.0,0.00020439,2]
[357006026,1743571848059,-503.08632278,0.00020439,2]
[357006027,1743571848069,-599.97271839,0.00020439,2]
[357006028,1743571848079,-500.0,0.00020439,2]
[357006029,1743571848088,-500.0,0.00020439,2]
[357006030,1743571848098,-502.25346819,0.00020439,2]
[357006031,1743571848107,-500.0,0.00020439,2]
[357006032,1743571848116,-500.0,0.00020439,2]
[357006033,1743571848125,-500.0,0.00020439,2]
[357006034,1743571848134,-500.0,0.00020439,2]
[357006035,1743571848143,-500.0,0.00020439,2]
[357006036,1743571848153,-500.0,0.00020439,2]
[357006037,1743571848162,-500.0,0.00020439,2]
[357006038,1743571848172,-500.0,0.00020439,2]
[357006039,1743571848181,-500.0,0.00020439,2]
[357006040,1743571848191,-500.0,0.00020439,2]
[357006041,1743571848200,-500.0,0.00020439,2]
[357006042,1743571848210,-500.0,0.00020439,2]
[357006043,1743571848219,-500.0,0.00020439,2]
[357006044,1743571848228,-500.0,0.00020439,2]
[357006045,1743571848239,-500.0,0.00020439,2]
[357006046,1743571848250,-500.0,0.00020439,2]
[357006047,1743571848260,-500.0,0.00020439,2]
[357006048,1743571848269,-500.0,0.00020439,2]
[357006049,1743571848280,-500.0,0.00020439,2]
[357006050,1743571848292,-22037.78269815,0.0002044,2]
[357006051,1743571848302,-419.02799708,0.0002048,2]
[357006052,1743571848312,-12458.93820146,0.00020481,2]
[357006053,1743571848322,-500.0,0.00020538,2]
[357006054,1743571848332,-500.0,0.00020538,2]
[357006055,1743571848342,-500.0,0.00020538,2]
[357006056,1743571848351,-2902.31,0.00020538,2]
[357006057,1743571848361,-500.0,0.00020538,2]
[357006058,1743571848371,-508.33719497,0.0002054,2]
[357006059,1743571848381,-505.50264958,0.0002054,2]
[357006060,1743571848391,-503.22007225,0.0002054,2]
[357006061,1743571848400,-508.56877087,0.0002054,2]
[357006062,1743571848410,-500.0,0.0002054,2]
[357006063,1743571848419,-500.0,0.0002054,2]
[357006064,1743571848429,-500.0,0.0002054,2]
[357006065,1743571848440,-500.0,0.0002054,2]
[357006066,1743571848451,-11272.13,0.0002071,2]
[357006067,1743571848460,-500.0,0.0002071,2]
[357006068,1743571848470,-1222.92,0.0002071,2]
[357006069,1743571848479,-500.0,0.0002071,2]
[357006070,1743571848489,-456.29061903,0.0002071,2]
[357006071,1743571848499,-517.88,0.0002071,2]
[357006072,1743571848508,-492.28135629,0.0002071,2]
[357006073,1743571848553,-4325.27864371,0.0002071,2]
[357006074,1743571848563,-500.0,0.0002071,2]
[357006075,1743571848573,-644.06,0.0002071,2]
[357006076,1743571848583,-500.0,0.0002071,2]
[357006077,1743571848592,-500.0,0.0002071,2]
[357006078,1743571848746,-155.5,0.00020711,2]
[357006079,1743571848757,-500.0,0.00020711,2]
[357006080,1743571848767,-500.0,0.00020711,2]
[357006081,1743571848776,-711.87,0.00020711,2]
[357006082,1743571848786,-990.41,0.00020711,2]
[357006083,1743571848796,-500.0,0.00020711,2]
[357006084,1743571848805,-500.0,0.00020711,2]
[357006085,1743571848815,-379.81383704,0.00020711,2]
[357006086,1743571848825,-500.0,0.00020711,2]
[357006087,1743571848835,-1665.2,0.00020711,2]
[357006088,1743571848845,-500.0,0.00020711,2]
[357006089,1743571848854,-500.0,0.00020711,2]
[357006090,1743571848863,-500.0,0.00020711,2]
[357006091,1743571848873,-151.0,0.00020711,2]
[357006092,1743571848882,-500.0,0.00020711,2]
[357006093,1743571848892,-500.0,0.00020711,2]
[357006094,1743571848901,-716.65,0.00020711,2]
[357006095,1743571848911,-3020.5120647,0.00020711,2]
[357006096,1743571848924,-212.8979353,0.00020711,2]
[357006097,1743571848933,-500.0,0.00020712,2]
[357006098,1743571848944,-500.0,0.00020712,2]
[357006099,1743571848953,-500.0,0.00020712,2]
[357006100,1743571848963,-512.79858635,0.00020712,2]
[357006101,1743571848973,-500.0,0.00020712,2]
[357006102,1743571848982,-500.0,0.00020712,2]
[357006103,1743571848992,-500.0,0.00020712,2]
[357006104,1743571849001,-500.0,0.00020712,2]
[357006105,1743571849010,-500.0,0.00020712,2]
[357006106,1743571849019,-500.0,0.00020712,2]
[357006107,1743571849029,-500.0,0.00020712,2]
[357006108,1743571849039,-500.0,0.00020712,2]
[357006109,1743571849048,-500.0,0.00020712,2]
[357006110,1743571849058,-373.40900841,0.00020712,2]
[357006112,1743572163452,152.0,0.00025,30]
[357006120,1743572247759,-3529.62353151,0.00027185,120]
[357006121,1743572247858,-950.53171959,0.00027185,120]
[357006122,1743572247884,-162.2776852,0.00027185,120]
[357006123,1743572247911,-178.5143578,0.00027397,120]
[357006124,1743572247941,-158.1002518,0.00028,120]
[357006125,1743572248107,-111.8997482,0.00028,120]
[357006126,1743572248280,-88.1054118,0.000289,120]
[357006129,1743572420206,468.41,0.00025,30]
[357006131,1743572654096,176.112776,0.00013699,2]
[357006154,1743573036799,-1682.62902345,0.00019787,2]
[357006155,1743573036819,-500.0,0.00019876,2]
[357006156,1743573036830,-278.25369454,0.00019876,2]
[357006157,1743573036840,-500.0,0.00019876,2]
[357006158,1743573036850,-500.0,0.00019876,2]
[357006159,1743573036861,-500.0,0.00019876,2]
[357006160,1743573036870,-500.0,0.00019876,2]
[357006161,1743573036881,-500.0,0.00019876,2]
[357006162,1743573036891,-500.0,0.00019876,2]
[357006163,1743573036901,-500.0,0.00019876,2]
[357006164,1743573036912,-500.0,0.00019876,2]
[357006165,1743573036922,-500.0,0.00019876,2]
[357006166,1743573036932,-500.0,0.00019876,2]
[357006167,1743573036942,-500.0,0.00019876,2]
[357006168,1743573036952,-500.0,0.00019876,2]
[357006169,1743573036962,-500.0,0.00019876,2]
[357006170,1743573036972,-81.1697226,0.00019876,2]
[357006171,1743573036986,-418.8302774,0.00019876,2]
[357006172,1743573036996,-340.36896162,0.00019876,2]
[357006173,1743573037006,-500.0,0.00019876,2]
[357006174,1743573037016,-500.0,0.00019876,2]
[357006175,1743573037026,-500.0,0.00019876,2]
[357006176,1743573037037,-500.0,0.00019876,2]
[357006177,1743573037046,-500.0,0.00019876,2]
[357006178,1743573037056,-500.0,0.00019876,2]
[357006179,1743573037065,-500.0,0.00019876,2]
[357006180,1743573037076,-500.0,0.00019876,2]
[357006181,1743573037085,-521.97529482,0.00019876,2]
[357006182,1743573037095,-500.0,0.00019876,2]
[357006183,1743573037105,-500.0,0.00019876,2]
[357006184,1743573037115,-500.0,0.00019876,2]
[357006185,1743573037124,-500.0,0.00019876,2]
[357006186,1743573037135,-12458.93820146,0.00019877,2]
[357006187,1743573037144,-300.0,0.00019878,2]
[357006188,1743573037154,-1419.78250437,0.00019879,2]
[357006189,1743573037163,-490.53,0.0001988,3]
[357006190,1743573037173,-1121.01,0.00019881,2]
[357006191,1743573037183,-500.0,0.00019881,2]
[357006192,1743573037193,-523.64,0.00019881,2]
[357006193,1743573037203,-500.0,0.00019881,2]
[357006194,1743573037213,-4153.37628566,0.00019884,2]
[357006195,1743573037225,-521.61715114,0.00019884,2]
[357006196,1743573037237,-825.69864001,0.00019884,2]
[357006204,1743573038590,-590.39,0.00019881,2]
[357006205,1743573038600,-4832.09792319,0.00019884,2]
[357006206,1743573038610,-500.0,0.00019884,2]
[357006207,1743573038619,-4416.09,0.00019884,2]
[357006208,1743573038631,-500.0,0.00019884,2]
[357006209,1743573038641,-500.0,0.00019884,2]
[357006210,1743573038650,-597.32450337,0.00019886,2]
[357006211,1743573038660,-642.01090861,0.00019887,2]
[357006212,1743573038669,-500.0,0.00019887,2]
[357006213,1743573038680,-500.0,0.00019887,2]
[357006214,1743573038689,-500.0,0.00019887,2]
[357006215,1743573038699,-1000.0,0.00019887,2]
[357006216,1743573038710,-500.0,0.00019887,2]
[357006217,1743573038719,-319.76526867,0.00019887,2]
[357006218,1743573038729,-544.01197518,0.00019887,2]
[357006219,1743573038738,-245.55242459,0.00019887,2]
[357006220,1743573038747,-500.0,0.00019887,2]
[357006221,1743573038756,-500.0,0.00019887,2]
[357006222,1743573038765,-500.0,0.00019887,2]
[357006223,1743573038776,-500.0,0.00019887,2]
[357006224,1743573038785,-500.0,0.00019887,2]
[357006225,1743573038795,-500.0,0.00019887,2]
[357006226,1743573038805,-500.0,0.00019887,2]
[357006227,1743573038815,-500.0,0.00019887,2]
[357006228,1743573038826,-500.0,0.00019887,2]
[357006229,1743573038835,-500.0,0.00019887,2]
[357006230,1743573038845,-500.0,0.00019887,2]
[357006231,1743573038855,-524.51,0.00019887,2]
[357006232,1743573038865,-533.05,0.00019887,2]
[357006233,1743573038876,-500.0,0.00019887,2]
[357006234,1743573038887,-500.0,0.00019887,2]
[357006235,1743573038896,-200.0,0.00019887,2]
[357006236,1743573038905,-500.0,0.00019887,2]
[357006237,1743573038914,-500.0,0.00019887,2]